[Event "*** Qualifier 2: Titled Tuesday 3|2 Blitz"]
[Site "Chess.com"]
[Date "2017.04.11"]
[Round "6"]
[White "TheNextLevelFan"]
[Black "oskariot"]
[Result "0-1"]
[WhiteElo "2379"]
[BlackElo "2411"]
[TimeControl "180+2"]
[EndTime "14:29:54 PDT"]
[Termination "oskariot won on time"]

1. d4 {[%clk 0:03:02]} 1... g6 {[%clk 0:03:00.4]} 2. e4 {[%clk 0:03:02.6]} 2...
d6 {[%clk 0:03:00.1]} 3. Nc3 {[%clk 0:03:04.1]} 3... Bg7 {[%clk 0:03:01.2]} 4.
Bc4 {[%clk 0:03:04.6]} 4... a6 {[%clk 0:03:00.8]} 5. a4 {[%clk 0:03:02.5]} 5...
b6 {[%clk 0:02:57.8]} 6. Nf3 {[%clk 0:02:56.9]} 6... Bb7 {[%clk 0:02:48.1]} 7.
O-O {[%clk 0:02:50]} 7... e6 {[%clk 0:02:45.1]} 8. Re1 {[%clk 0:02:48]} 8... Ne7
{[%clk 0:02:42.8]} 9. Bf4 {[%clk 0:02:46.8]} 9... Nd7 {[%clk 0:02:17.6]} 10. Qd2
{[%clk 0:02:45]} 10... h6 {[%clk 0:02:18]} 11. Rad1 {[%clk 0:02:39.5]} 11... g5
{[%clk 0:02:13.8]} 12. Bg3 {[%clk 0:02:39.3]} 12... Ng6 {[%clk 0:02:15.5]} 13.
h3 {[%clk 0:02:36.5]} 13... O-O {[%clk 0:02:11.6]} 14. Qe3 {[%clk 0:02:32.8]}
14... Qe7 {[%clk 0:02:09.8]} 15. e5 {[%clk 0:02:30.3]} 15... d5 {[%clk
0:02:09.4]} 16. Bd3 {[%clk 0:02:31.2]} 16... c5 {[%clk 0:02:10.9]} 17. dxc5
{[%clk 0:02:26.3]} 17... bxc5 {[%clk 0:02:10.7]} 18. Bxg6 {[%clk 0:02:19.4]}
18... fxg6 {[%clk 0:02:10.7]} 19. Qe2 {[%clk 0:02:12.4]} 19... Rf5 {[%clk
0:02:03.7]} 20. Rd3 {[%clk 0:01:58.5]} 20... Raf8 {[%clk 0:01:44.7]} 21. Nd1
{[%clk 0:01:57.9]} 21... d4 {[%clk 0:01:46.2]} 22. Nd2 {[%clk 0:01:55.3]} 22...
Nxe5 {[%clk 0:01:42.2]} 23. Rb3 {[%clk 0:01:50.2]} 23... Bd5 {[%clk 0:01:39.3]}
24. Rb6 {[%clk 0:01:48]} 24... Qc7 {[%clk 0:01:10.7]} 25. a5 {[%clk 0:01:42.9]}
25... Qd7 {[%clk 0:01:04]} 26. c4 {[%clk 0:01:36.2]} 26... dxc3 {[%clk
0:00:54.8]} 27. Nxc3 {[%clk 0:01:36.7]} 27... Nc6 {[%clk 0:00:56.3]} 28. Nxd5
{[%clk 0:01:29.1]} 28... exd5 {[%clk 0:00:58.2]} 29. Qe6+ {[%clk 0:01:28]} 29...
Qxe6 {[%clk 0:00:58.7]} 30. Rxe6 {[%clk 0:01:29.9]} 30... Nxa5 {[%clk
0:00:57.5]} 31. Rxa6 {[%clk 0:01:25.7]} 31... Nc4 {[%clk 0:00:53.5]} 32. Nxc4
{[%clk 0:01:24.5]} 32... dxc4 {[%clk 0:00:53.8]} 33. Rxg6 {[%clk 0:01:26.1]}
33... R8f6 {[%clk 0:00:45.9]} 34. Ra8+ {[%clk 0:01:06.3]} 34... Kh7 {[%clk
0:00:43.5]} 35. Rxf6 {[%clk 0:01:07.2]} 35... Bxf6 {[%clk 0:00:25.9]} 36. Ra4
{[%clk 0:00:49.8]} 36... Bxb2 {[%clk 0:00:25.8]} 37. Rxc4 {[%clk 0:00:51.1]}
37... Bd4 {[%clk 0:00:24.9]} 38. Kf1 {[%clk 0:00:51.3]} 38... Kg6 {[%clk
0:00:26.2]} 39. Ke2 {[%clk 0:00:52.2]} 39... Kf6 {[%clk 0:00:26.6]} 40. f3
{[%clk 0:00:53.2]} 40... Ke6 {[%clk 0:00:27.6]} 41. Kd3 {[%clk 0:00:54.6]} 41...
Kd5 {[%clk 0:00:28.5]} 42. Rc2 {[%clk 0:00:55.2]} 42... Rf7 {[%clk 0:00:24.6]}
43. h4 {[%clk 0:00:47]} 43... Rb7 {[%clk 0:00:15.9]} 44. hxg5 {[%clk 0:00:41.2]}
44... hxg5 {[%clk 0:00:17.8]} 45. Be1 {[%clk 0:00:42.2]} 45... Rb3+ {[%clk
0:00:18.7]} 46. Ke2 {[%clk 0:00:43.6]} 46... Re3+ {[%clk 0:00:19.5]} 47. Kf1
{[%clk 0:00:41.7]} 47... c4 {[%clk 0:00:20.2]} 48. Bd2 {[%clk 0:00:40.7]} 48...
Re5 {[%clk 0:00:12.2]} 49. Bb4 {[%clk 0:00:30.7]} 49... g4 {[%clk 0:00:10.2]}
50. fxg4 {[%clk 0:00:24.7]} 50... Re4 {[%clk 0:00:11.1]} 51. g5 {[%clk
0:00:24.7]} 51... Rg4 {[%clk 0:00:11.8]} 52. Bd2 {[%clk 0:00:24.8]} 52... Ke4
{[%clk 0:00:09.3]} 53. Rxc4 {[%clk 0:00:15.1]} 53... Kd3 {[%clk 0:00:08.1]} 54.
Rxd4+ {[%clk 0:00:14.2]} 54... Kxd4 {[%clk 0:00:07.3]} 55. Kf2 {[%clk
0:00:10.5]} 55... Ke4 {[%clk 0:00:08.3]} 56. g3 {[%clk 0:00:10.1]} 56... Kf5
{[%clk 0:00:08.7]} 57. Kf3 {[%clk 0:00:06.2]} 57... Ra4 {[%clk 0:00:08.9]} 58.
Bf4 {[%clk 0:00:04.4]} 58... Ra3+ {[%clk 0:00:10.1]} 59. Kf2 {[%clk 0:00:05.8]}
59... Kg4 {[%clk 0:00:11.3]} 60. Ke2 {[%clk 0:00:06.7]} 60... Kf5 {[%clk
0:00:12.7]} 61. Kf2 {[%clk 0:00:07.9]} 61... Ke4 {[%clk 0:00:14.2]} 62. g6
{[%clk 0:00:07.8]} 62... Ra6 {[%clk 0:00:14.9]} 63. g7 {[%clk 0:00:08.4]} 63...
Rg6 {[%clk 0:00:16.1]} 64. Ke2 {[%clk 0:00:05.7]} 64... Rxg7 {[%clk 0:00:16.7]}
65. Kf2 {[%clk 0:00:07.2]} 65... Rb7 {[%clk 0:00:18.6]} 66. Kg2 {[%clk
0:00:08.4]} 66... Rb2+ {[%clk 0:00:20.1]} 67. Kh3 {[%clk 0:00:09.4]} 67... Kf3
{[%clk 0:00:21.7]} 68. Kh4 {[%clk 0:00:10.8]} 68... Rb5 {[%clk 0:00:22.2]} 69.
Bd6 {[%clk 0:00:07.3]} 69... Rd5 {[%clk 0:00:22.1]} 70. Bf4 {[%clk 0:00:08.4]}
70... Ke4 {[%clk 0:00:23.2]} 71. Kg4 {[%clk 0:00:08.9]} 71... Rd8 {[%clk
0:00:24.6]} 72. Kg5 {[%clk 0:00:09.8]} 72... Rg8+ {[%clk 0:00:25.6]} 73. Kf6
{[%clk 0:00:11]} 73... Kf3 {[%clk 0:00:26.6]} 74. Kf5 {[%clk 0:00:12.2]} 74...
Ra8 {[%clk 0:00:27.9]} 75. Kg5 {[%clk 0:00:13.3]} 75... Ra5+ {[%clk 0:00:29.1]}
76. Kf6 {[%clk 0:00:12.9]} 76... Ke4 {[%clk 0:00:29.5]} 77. Kg6 {[%clk 0:00:13]}
77... Ra6+ {[%clk 0:00:30.9]} 78. Kg5 {[%clk 0:00:14]} 78... Ra5+ {[%clk
0:00:32.3]} 79. Kg4 {[%clk 0:00:15.2]} 79... Kd5 {[%clk 0:00:33.4]} 80. Kf5
{[%clk 0:00:16.2]} 80... Kd4+ {[%clk 0:00:33.7]} 81. Kf6 {[%clk 0:00:15.9]}
81... Ke4 {[%clk 0:00:34.5]} 82. Kg6 {[%clk 0:00:17.3]} 82... Rf5 {[%clk
0:00:35.4]} 83. Kh6 {[%clk 0:00:16.4]} 83... Kf3 {[%clk 0:00:36.1]} 84. Kg6
{[%clk 0:00:17.5]} 84... Kg4 {[%clk 0:00:37.6]} 85. Kh6 {[%clk 0:00:17.7]} 85...
Rf6+ {[%clk 0:00:38.7]} 86. Kg7 {[%clk 0:00:19]} 86... Re6 {[%clk 0:00:39.2]}
87. Kf7 {[%clk 0:00:20.2]} 87... Rc6 {[%clk 0:00:39]} 88. Ke7 {[%clk 0:00:21.3]}
88... Kf5 {[%clk 0:00:40.5]} 89. Kd7 {[%clk 0:00:22.5]} 89... Ra6 {[%clk
0:00:42.1]} 90. Kc7 {[%clk 0:00:22.3]} 90... Ke4 {[%clk 0:00:43.5]} 91. Kb7
{[%clk 0:00:22.4]} 91... Rg6 {[%clk 0:00:45.1]} 92. Ka8 {[%clk 0:00:22.7]} 92...
Kd5 {[%clk 0:00:46.7]} 93. Kb7 {[%clk 0:00:19.7]} 93... Rf6 {[%clk 0:00:47]} 94.
Kc7 {[%clk 0:00:20.5]} 94... Kc5 {[%clk 0:00:45.3]} 95. Kd7 {[%clk 0:00:21.1]}
95... Kd5 {[%clk 0:00:46.8]} 96. Ke7 {[%clk 0:00:22.3]} 96... Ra6 {[%clk
0:00:48.7]} 97. Kf7 {[%clk 0:00:21.9]} 97... Ke4 {[%clk 0:00:50.2]} 98. Ke7
{[%clk 0:00:22.2]} 98... Kf5 {[%clk 0:00:51.7]} 99. Kd7 {[%clk 0:00:23.5]} 99...
Kf6 {[%clk 0:00:53]} 100. Kc7 {[%clk 0:00:23.2]} 100... Ke6 {[%clk 0:00:54.3]}
101. Kb7 {[%clk 0:00:24.2]} 101... Ra4 {[%clk 0:00:55]} 102. Kc6 {[%clk
0:00:22.5]} 102... Rc4+ {[%clk 0:00:55.7]} 103. Kb5 {[%clk 0:00:23.3]} 103...
Kd5 {[%clk 0:00:57]} 104. Kb6 {[%clk 0:00:24.3]} 104... Rb4+ {[%clk 0:00:55.9]}
105. Kc7 {[%clk 0:00:25.3]} 105... Rb5 {[%clk 0:00:57.2]} 106. Kc8 {[%clk
0:00:22.5]} 106... Kc6 {[%clk 0:00:57.3]} 107. Kd8 {[%clk 0:00:23.9]} 107... Rb7
{[%clk 0:00:58.6]} 108. Ke8 {[%clk 0:00:24.1]} 108... Kd5 {[%clk 0:00:59.6]}
109. Kd8 {[%clk 0:00:24.8]} 109... Ke6 {[%clk 0:01:00.8]} 110. Kc8 {[%clk
0:00:26]} 110... Ra7 {[%clk 0:01:02.1]} 111. Kb8 {[%clk 0:00:26.7]} 111... Rh7
{[%clk 0:01:04]} 112. Kc8 {[%clk 0:00:27.6]} 112... Kd5 {[%clk 0:01:05.1]} 113.
Kd8 {[%clk 0:00:27.3]} 113... Ke6 {[%clk 0:00:59.1]} 114. Kc8 {[%clk 0:00:28.4]}
114... Rd7 {[%clk 0:01:00.7]} 115. Kb8 {[%clk 0:00:28.6]} 115... Kd5 {[%clk
0:01:02]} 116. Kc8 {[%clk 0:00:30]} 116... Kc6 {[%clk 0:01:03]} 117. Kb8 {[%clk
0:00:30.8]} 117... Rd8+ {[%clk 0:00:56.9]} 118. Ka7 {[%clk 0:00:31.9]} 118...
Re8 {[%clk 0:00:58]} 119. Bb8 {[%clk 0:00:27.7]} 119... Re7+ {[%clk 0:00:55.1]}
120. Ka8 {[%clk 0:00:23.4]} 120... Kb6 {[%clk 0:00:54.4]} 121. g4 {[%clk
0:00:24.5]} 121... Rg7 {[%clk 0:00:45.2]} 122. g5 {[%clk 0:00:24.4]} 122... Rg6
{[%clk 0:00:46.4]} 123. Ba7+ {[%clk 0:00:23.1]} 123... Ka6 {[%clk 0:00:46.9]}
124. Bb8 {[%clk 0:00:22.3]} 124... Rg7 {[%clk 0:00:48.2]} 125. g6 {[%clk
0:00:22.9]} 125... Kb6 {[%clk 0:00:49.6]} 0-1

[Event "*** Qualifier 2: Titled Tuesday 3|2 Blitz"]
[Site "Chess.com"]
[Date "2017.04.11"]
[Round "6"]
[White "Th3ChessViking"]
[Black "likantrophuss"]
[Result "1/2-1/2"]
[WhiteElo "2285"]
[BlackElo "2393"]
[TimeControl "180+2"]
[EndTime "14:31:22 PDT"]
[Termination "Game drawn by agreement"]

1. c4 {[%clk 0:02:59.7]} 1... f5 {[%clk 0:03:00.2]} 2. g3 {[%clk 0:03:01.6]}
2... Nf6 {[%clk 0:03:01]} 3. Bg2 {[%clk 0:03:03.5]} 3... g6 {[%clk 0:03:02.3]}
4. Nf3 {[%clk 0:03:05.4]} 4... Bg7 {[%clk 0:03:03.6]} 5. O-O {[%clk 0:03:07.3]}
5... O-O {[%clk 0:03:05]} 6. Nc3 {[%clk 0:03:09.2]} 6... d6 {[%clk 0:03:04.9]}
7. d3 {[%clk 0:03:10.6]} 7... e5 {[%clk 0:03:03.9]} 8. Rb1 {[%clk 0:03:12]} 8...
Nh5 {[%clk 0:03:04.6]} 9. Qc2 {[%clk 0:03:07.3]} 9... Nc6 {[%clk 0:03:03.7]} 10.
b4 {[%clk 0:03:07.5]} 10... a6 {[%clk 0:03:04.7]} 11. a4 {[%clk 0:03:07.4]}
11... Ne7 {[%clk 0:03:05.7]} 12. b5 {[%clk 0:03:08.4]} 12... axb5 {[%clk
0:03:06]} 13. axb5 {[%clk 0:03:10.3]} 13... Rb8 {[%clk 0:03:06.4]} 14. Bb2
{[%clk 0:03:04.6]} 14... b6 {[%clk 0:03:07]} 15. Ra1 {[%clk 0:03:03.9]} 15... f4
{[%clk 0:03:05.6]} 16. Ra7 {[%clk 0:03:02.9]} 16... Bg4 {[%clk 0:03:03]} 17.
Rfa1 {[%clk 0:03:02.7]} 17... Qd7 {[%clk 0:02:54.8]} 18. Nd2 {[%clk 0:02:49.9]}
18... fxg3 {[%clk 0:02:50.8]} 19. hxg3 {[%clk 0:02:49.6]} 19... Bh3 {[%clk
0:02:37.2]} 20. Bh1 {[%clk 0:02:50]} 20... Qg4 {[%clk 0:02:27.7]} 21. Bf3 {[%clk
0:02:37.2]} 21... Qd7 {[%clk 0:02:13.4]} 22. Ra8 {[%clk 0:02:29.2]} 22... Rxa8
{[%clk 0:02:10.6]} 23. Rxa8 {[%clk 0:02:31.1]} 23... Rxa8 {[%clk 0:02:11.8]} 24.
Bxa8 {[%clk 0:02:31.7]} 24... Nf5 {[%clk 0:02:10.5]} 25. Nf3 {[%clk 0:02:00.9]}
25... Bg4 {[%clk 0:02:04.4]} 26. Ne4 {[%clk 0:01:50.7]} 26... Bxf3 {[%clk
0:02:00.5]} 27. exf3 {[%clk 0:01:52.6]} 27... Nf6 {[%clk 0:01:49]} 28. Qa4
{[%clk 0:01:38.5]} 28... Nxe4 {[%clk 0:01:17.9]} 29. fxe4 {[%clk 0:01:27.8]}
29... Ne7 {[%clk 0:01:17.2]} 30. Kg2 {[%clk 0:01:19.8]} 30... Bh6 {[%clk
0:01:15.9]} 31. Qa7 {[%clk 0:01:17.3]} 31... Bd2 {[%clk 0:01:11.9]} 32. Qb8+
{[%clk 0:01:13.8]} 32... Kg7 {[%clk 0:01:12.9]} 33. Bd5 {[%clk 0:01:09.5]} 33...
Qc8 {[%clk 0:01:07.7]} 34. Qa7 {[%clk 0:00:59.6]} 34... g5 {[%clk 0:01:07.8]}
35. Bb7 {[%clk 0:00:53.6]} 35... Qd8 {[%clk 0:01:07.4]} 36. Qa2 {[%clk 0:00:54]}
36... Bb4 {[%clk 0:01:06]} 37. Qb1 {[%clk 0:00:54.3]} 37... Bc5 {[%clk
0:01:05.6]} 38. Qd1 {[%clk 0:00:54.5]} 38... Qf8 {[%clk 0:01:05.8]} 39. Qe2
{[%clk 0:00:55.1]} 39... Kg6 {[%clk 0:01:04.3]} 40. Bc1 {[%clk 0:00:55.9]} 40...
h5 {[%clk 0:01:03.2]} 41. Bd2 {[%clk 0:00:55.4]} 41... Qf6 {[%clk 0:00:54]} 42.
Be1 {[%clk 0:00:55.4]} 42... Ng8 {[%clk 0:00:48.1]} 43. Bc8 {[%clk 0:00:55.3]}
43... Nh6 {[%clk 0:00:47.6]} 44. f3 {[%clk 0:00:47.2]} 44... Qd8 {[%clk
0:00:42.8]} 45. Be6 {[%clk 0:00:45.3]} 45... Qa8 {[%clk 0:00:43.1]} 46. Qb2
{[%clk 0:00:33.3]} 46... Qa4 {[%clk 0:00:42.1]} 47. Bd7 {[%clk 0:00:24.9]} 47...
Qd1 {[%clk 0:00:42.1]} 48. Qd2 {[%clk 0:00:25.4]} 48... Qb1 {[%clk 0:00:42.6]}
49. Be8+ {[%clk 0:00:25.3]} 49... Kf6 {[%clk 0:00:41.4]} 50. Bxh5 {[%clk
0:00:25.7]} 50... Ng8 {[%clk 0:00:40.7]} 51. Bg4 {[%clk 0:00:25.2]} 51... Ne7
{[%clk 0:00:41]} 52. f4 {[%clk 0:00:25.9]} 52... gxf4 {[%clk 0:00:38.7]} 53.
gxf4 {[%clk 0:00:27.8]} 53... Ng6 {[%clk 0:00:38.2]} 54. fxe5+ {[%clk
0:00:27.6]} 54... dxe5 {[%clk 0:00:39.1]} 55. Bf3 {[%clk 0:00:14.4]} 55... Nf4+
{[%clk 0:00:38.8]} 56. Kh2 {[%clk 0:00:11.9]} 56... Qxd3 {[%clk 0:00:36.8]} 57.
Bh4+ {[%clk 0:00:12.5]} 57... Ke6 {[%clk 0:00:36.2]} 58. Qxd3 {[%clk 0:00:13.4]}
58... Nxd3 {[%clk 0:00:37]} 59. Bd8 {[%clk 0:00:13.7]} 59... Kd7 {[%clk
0:00:37.5]} 60. Bf6 {[%clk 0:00:14.2]} 60... Ke6 {[%clk 0:00:38.4]} 61. Bg7
{[%clk 0:00:14.9]} 61... Be7 {[%clk 0:00:31.5]} 62. Bg4+ {[%clk 0:00:14]} 62...
Kd6 {[%clk 0:00:32.1]} 63. Be2 {[%clk 0:00:14.5]} 63... Nf4 {[%clk 0:00:32.4]}
64. Bf1 {[%clk 0:00:15]} 64... Nh5 {[%clk 0:00:26.9]} 65. Bh8 {[%clk 0:00:15.5]}
65... Bf6 {[%clk 0:00:28]} 66. Be2 {[%clk 0:00:14]} 66... Nf4 {[%clk 0:00:29.2]}
67. Bxf6 {[%clk 0:00:12.8]} 67... Nxe2 {[%clk 0:00:30.2]} 68. Kg2 {[%clk
0:00:12.4]} 68... Nc1 {[%clk 0:00:20.3]} 69. Kf3 {[%clk 0:00:12.8]} 69... Ke6
{[%clk 0:00:21]} 70. Bd8 {[%clk 0:00:12.7]} 70... Kd7 {[%clk 0:00:21.4]} 71. Bf6
{[%clk 0:00:13.5]} 71... Ke6 {[%clk 0:00:21.9]} 72. Bd8 {[%clk 0:00:14.3]} 72...
Kd6 {[%clk 0:00:23.2]} 73. Ke3 {[%clk 0:00:15.1]} 73... Nb3 {[%clk 0:00:24]} 74.
Kd3 {[%clk 0:00:12.5]} 74... Nc5+ {[%clk 0:00:24.3]} 75. Ke3 {[%clk 0:00:13.6]}
75... Ne6 {[%clk 0:00:23.7]} 76. Bf6 {[%clk 0:00:14.3]} 76... Nf8 {[%clk
0:00:19.5]} 77. Kd3 {[%clk 0:00:14.1]} 77... Nd7 {[%clk 0:00:20.6]} 78. Bd8
{[%clk 0:00:15]} 78... Nc5+ {[%clk 0:00:20.4]} 79. Ke3 {[%clk 0:00:15.8]} 79...
Nb7 {[%clk 0:00:21.5]} 80. Bf6 {[%clk 0:00:16.2]} 80... Ke6 {[%clk 0:00:22.4]}
81. Bg5 {[%clk 0:00:14.2]} 81... Nd6 {[%clk 0:00:23.3]} 82. Kd3 {[%clk
0:00:13.7]} 82... Nf7 {[%clk 0:00:24.1]} 83. Bh4 {[%clk 0:00:14]} 83... Kd6
{[%clk 0:00:24]} 84. Bf6 {[%clk 0:00:15.2]} 84... Ke6 {[%clk 0:00:23]} 85. Bh4
{[%clk 0:00:16.3]} 85... Nd6 {[%clk 0:00:18.6]} 86. Bd8 {[%clk 0:00:15.8]} 86...
Ne8 {[%clk 0:00:19.6]} 87. Bh4 {[%clk 0:00:16.3]} 87... Kf7 {[%clk 0:00:20.5]}
88. Bd8 {[%clk 0:00:17]} 88... Kg6 {[%clk 0:00:21.1]} 89. Ke3 {[%clk 0:00:17.6]}
89... Kh5 {[%clk 0:00:20]} 90. Kf3 {[%clk 0:00:17.5]} 90... Kg6 {[%clk
0:00:21.1]} 91. Ke3 {[%clk 0:00:17.6]} 91... Kf7 {[%clk 0:00:22.4]} 92. Kd3
{[%clk 0:00:18]} 92... Ke6 {[%clk 0:00:23.8]} 93. Ke3 {[%clk 0:00:18]} 93... Kd7
{[%clk 0:00:25.1]} 94. Bg5 {[%clk 0:00:17.8]} 94... Nd6 {[%clk 0:00:25.9]} 95.
Kd3 {[%clk 0:00:19.1]} 95... Nb7 {[%clk 0:00:26.3]} 96. Bf6 {[%clk 0:00:18.8]}
96... Ke6 {[%clk 0:00:26.2]} 97. Bg5 {[%clk 0:00:17.7]} 97... Nc5+ {[%clk
0:00:26.9]} 98. Ke3 {[%clk 0:00:18.6]} 98... Na4 {[%clk 0:00:27.2]} 99. Bd8
{[%clk 0:00:19.1]} 99... Kd6 {[%clk 0:00:28]} 100. Kd3 {[%clk 0:00:18.9]} 100...
Nb2+ {[%clk 0:00:28.1]} 101. Kc3 {[%clk 0:00:19.6]} 101... Nd1+ {[%clk
0:00:28.7]} 102. Kd2 {[%clk 0:00:20.5]} 102... Nb2 {[%clk 0:00:25.1]} 103. Kc3
{[%clk 0:00:21]} 103... Nd1+ {[%clk 0:00:23.1]} 104. Kd2 {[%clk 0:00:21.6]}
104... Nf2 {[%clk 0:00:24.2]} 105. Ke3 {[%clk 0:00:22.4]} 105... Ng4+ {[%clk
0:00:25.5]} 106. Kf3 {[%clk 0:00:21.4]} 106... Nh6 {[%clk 0:00:26.8]} 107. Ke3
{[%clk 0:00:21.5]} 107... Nf7 {[%clk 0:00:27]} 108. Bf6 {[%clk 0:00:22.5]}
108... c6 {[%clk 0:00:27.7]} 109. bxc6 {[%clk 0:00:20.7]} 109... Kxc6 {[%clk
0:00:28.8]} 110. Kd3 {[%clk 0:00:22.6]} 110... Kd6 {[%clk 0:00:29.8]} 111. Kc3
{[%clk 0:00:23.1]} 111... Ke6 {[%clk 0:00:29]} 112. Bh4 {[%clk 0:00:23.2]}
112... Nd6 {[%clk 0:00:29.7]} 113. Kd3 {[%clk 0:00:23.1]} 113... Nb7 {[%clk
0:00:30.7]} 114. Bf2 {[%clk 0:00:20.6]} 114... Nc5+ {[%clk 0:00:16.4]} 115. Bxc5
{[%clk 0:00:21.2]} 115... bxc5 {[%clk 0:00:17.6]} 116. Ke2 {[%clk 0:00:23.1]}
116... Kf6 {[%clk 0:00:11.8]} 117. Kf2 {[%clk 0:00:22.7]} 117... Kg6 {[%clk
0:00:09.6]} 118. Kg2 {[%clk 0:00:23.4]} 118... Kh6 {[%clk 0:00:08.9]} 119. Kh2
{[%clk 0:00:24]} 119... Kg6 {[%clk 0:00:09.8]} 120. Kg2 {[%clk 0:00:24.5]}
120... Kh6 {[%clk 0:00:10.8]} 121. Kh2 {[%clk 0:00:24.7]} 1/2-1/2

[Event "*** Qualifier 2: Titled Tuesday 3|2 Blitz"]
[Site "Chess.com"]
[Date "2017.04.11"]
[Round "7"]
[White "MattyDPerrine"]
[Black "feigelag"]
[Result "0-1"]
[WhiteElo "2283"]
[BlackElo "2225"]
[TimeControl "180+2"]
[EndTime "14:36:47 PDT"]
[Termination "feigelag won by resignation"]

1. Nf3 {[%clk 0:03:02]} 1... d5 {[%clk 0:02:57.5]} 2. g3 {[%clk 0:03:02.3]} 2...
e6 {[%clk 0:02:58.2]} 3. Bg2 {[%clk 0:03:01.6]} 3... Bd6 {[%clk 0:02:56.3]} 4.
O-O {[%clk 0:03:01.3]} 4... Nf6 {[%clk 0:02:55.6]} 5. c4 {[%clk 0:03:02.7]} 5...
O-O {[%clk 0:02:54.5]} 6. d4 {[%clk 0:02:51.8]} 6... c6 {[%clk 0:02:54.4]} 7.
Qc2 {[%clk 0:02:52.2]} 7... Nbd7 {[%clk 0:02:52.6]} 8. Nbd2 {[%clk 0:02:46.9]}
8... Re8 {[%clk 0:02:51.4]} 9. e4 {[%clk 0:02:47.9]} 9... dxe4 {[%clk
0:02:51.8]} 10. Nxe4 {[%clk 0:02:49.8]} 10... Nxe4 {[%clk 0:02:52.8]} 11. Qxe4
{[%clk 0:02:51.7]} 11... e5 {[%clk 0:02:53.5]} 12. Re1 {[%clk 0:02:16.4]} 12...
Nf6 {[%clk 0:02:46.3]} 13. Qh4 {[%clk 0:02:15.8]} 13... e4 {[%clk 0:02:42]} 14.
Ng5 {[%clk 0:01:13.1]} 14... Bf5 {[%clk 0:02:39]} 15. Be3 {[%clk 0:00:41]} 15...
h6 {[%clk 0:02:10.9]} 16. Nh3 {[%clk 0:00:40.9]} 16... Be7 {[%clk 0:02:08.9]}
17. Nf4 {[%clk 0:00:20.8]} 17... Ng4 {[%clk 0:02:07.1]} 0-1

[Event "*** Qualifier 2: Titled Tuesday 3|2 Blitz"]
[Site "Chess.com"]
[Date "2017.04.11"]
[Round "7"]
[White "Wolverine_master"]
[Black "jeaston1"]
[Result "0-1"]
[WhiteElo "1968"]
[BlackElo "2092"]
[TimeControl "180+2"]
[EndTime "14:36:57 PDT"]
[Termination "jeaston1 won by resignation"]

1. e4 {[%clk 0:03:02]} 1... c5 {[%clk 0:03:00.3]} 2. Nf3 {[%clk 0:03:03.1]} 2...
Nc6 {[%clk 0:03:01.1]} 3. d4 {[%clk 0:03:04.7]} 3... cxd4 {[%clk 0:03:02.7]} 4.
Nxd4 {[%clk 0:03:05.2]} 4... Nf6 {[%clk 0:03:04]} 5. Nc3 {[%clk 0:03:06.4]} 5...
e5 {[%clk 0:03:04.4]} 6. Ndb5 {[%clk 0:03:07.3]} 6... d6 {[%clk 0:03:05.6]} 7.
Bg5 {[%clk 0:03:07.7]} 7... a6 {[%clk 0:03:06.9]} 8. Na3 {[%clk 0:03:08.9]} 8...
b5 {[%clk 0:03:05.1]} 9. Nd5 {[%clk 0:03:09.3]} 9... Be7 {[%clk 0:03:06.5]} 10.
Nxe7 {[%clk 0:03:09.8]} 10... Qxe7 {[%clk 0:03:07.3]} 11. c3 {[%clk 0:03:03.3]}
11... O-O {[%clk 0:03:07.7]} 12. Bd3 {[%clk 0:03:04.2]} 12... Be6 {[%clk
0:03:07]} 13. O-O {[%clk 0:03:03.3]} 13... Rad8 {[%clk 0:03:07.2]} 14. f4 {[%clk
0:03:01.4]} 14... exf4 {[%clk 0:03:06.5]} 15. Rxf4 {[%clk 0:03:01.1]} 15... Ne5
{[%clk 0:03:07.3]} 16. Qf1 {[%clk 0:02:39.5]} 16... Qa7+ {[%clk 0:03:05.4]} 17.
Kh1 {[%clk 0:02:35.9]} 17... Nh5 {[%clk 0:02:54.4]} 18. Bxd8 {[%clk 0:01:23.9]}
18... Nxf4 {[%clk 0:02:52.7]} 19. Bc2 {[%clk 0:00:42.4]} 19... Ng4 {[%clk
0:02:43.9]} 20. h3 {[%clk 0:00:41]} 20... Nf2+ {[%clk 0:02:40.3]} 21. Kh2 {[%clk
0:00:34.6]} 21... Rxd8 {[%clk 0:02:39.3]} 22. Kg3 {[%clk 0:00:19.6]} 22... Qe3+
{[%clk 0:02:39]} 23. Kh2 {[%clk 0:00:19.3]} 23... N4xh3 {[%clk 0:02:33.7]} 24.
gxh3 {[%clk 0:00:18.6]} 24... Bxh3 {[%clk 0:02:35.1]} 25. Qg1 {[%clk 0:00:17.5]}
25... Ng4+ {[%clk 0:02:31.8]} 26. Kh1 {[%clk 0:00:13]} 26... Qf3+ {[%clk
0:02:31.6]} 0-1

[Event "*** Qualifier 2: Titled Tuesday 3|2 Blitz"]
[Site "Chess.com"]
[Date "2017.04.11"]
[Round "7"]
[White "Tolya2"]
[Black "MartinMatthiesen"]
[Result "0-1"]
[WhiteElo "2305"]
[BlackElo "2257"]
[TimeControl "180+2"]
[EndTime "14:37:51 PDT"]
[Termination "MartinMatthiesen won by checkmate"]

1. Nf3 {[%clk 0:03:02]} 1... c5 {[%clk 0:02:53.1]} 2. c4 {[%clk 0:03:02.2]} 2...
Nc6 {[%clk 0:02:52.3]} 3. Nc3 {[%clk 0:03:00.7]} 3... g6 {[%clk 0:02:52.9]} 4.
g3 {[%clk 0:02:59]} 4... Bg7 {[%clk 0:02:53.2]} 5. Bg2 {[%clk 0:03:00.1]} 5...
e6 {[%clk 0:02:54.1]} 6. e3 {[%clk 0:02:59.2]} 6... Nge7 {[%clk 0:02:54.4]} 7.
O-O {[%clk 0:02:59.3]} 7... O-O {[%clk 0:02:54]} 8. d4 {[%clk 0:03:00.3]} 8...
cxd4 {[%clk 0:02:54.6]} 9. Nxd4 {[%clk 0:03:01.2]} 9... d5 {[%clk 0:02:53.8]}
10. cxd5 {[%clk 0:03:01.1]} 10... Nxd4 {[%clk 0:02:54.4]} 11. exd4 {[%clk
0:02:59.5]} 11... Nxd5 {[%clk 0:02:55.2]} 12. Qb3 {[%clk 0:02:58.4]} 12... Nxc3
{[%clk 0:02:37.2]} 13. bxc3 {[%clk 0:02:58.5]} 13... e5 {[%clk 0:02:26.1]} 14.
d5 {[%clk 0:02:47.2]} 14... Rb8 {[%clk 0:02:20.2]} 15. c4 {[%clk 0:02:40.5]}
15... b6 {[%clk 0:02:12.9]} 16. c5 {[%clk 0:02:39.2]} 16... Ba6 {[%clk
0:01:55.1]} 17. c6 {[%clk 0:02:39.4]} 17... Bxf1 {[%clk 0:01:55.1]} 18. Kxf1
{[%clk 0:02:38.4]} 18... e4 {[%clk 0:01:55.5]} 19. Rb1 {[%clk 0:02:36.2]} 19...
Re8 {[%clk 0:01:43.6]} 20. Bf4 {[%clk 0:02:24]} 20... Be5 {[%clk 0:01:39.6]} 21.
Be3 {[%clk 0:02:23.4]} 21... Bd6 {[%clk 0:01:36.3]} 22. Qa4 {[%clk 0:02:22.4]}
22... Bc5 {[%clk 0:01:15.5]} 23. Bf4 {[%clk 0:02:18.8]} 23... Qxd5 {[%clk
0:00:59.9]} 24. Bxb8 {[%clk 0:02:05.3]} 24... Qd3+ {[%clk 0:00:59.1]} 25. Kg1
{[%clk 0:01:59.5]} 25... Qxb1+ {[%clk 0:00:59.7]} 26. Bf1 {[%clk 0:02:00.5]}
26... Bxf2+ {[%clk 0:00:24]} 27. Kxf2 {[%clk 0:01:58.3]} 27... e3+ {[%clk
0:00:24.2]} 28. Kg2 {[%clk 0:01:58.8]} 28... e2 {[%clk 0:00:23.4]} 29. Bxe2
{[%clk 0:01:53.8]} 29... Rxe2+ {[%clk 0:00:23]} 30. Kf3 {[%clk 0:01:54.4]} 30...
Qf1+ {[%clk 0:00:21.4]} 31. Kg4 {[%clk 0:01:54.4]} 31... Qf5+ {[%clk 0:00:21.9]}
32. Kh4 {[%clk 0:01:54.5]} 32... Rxh2# {[%clk 0:00:22.9]} 0-1